fUSD/lending_fUSD_20260613
["ID","MTS","AMOUNT","RATE_DAILY","PERIOD"]
[424938050,1781303366000,-1152.31755462,8.364e-05,2]
[424938049,1781303366000,-2264.00588692,8.364e-05,2]
[424938048,1781303366000,-3416.32344154,8.364e-05,2]
[424938053,1781303390000,-1596.98303094,8.364e-05,2]
[424938052,1781303390000,-3559.26605954,8.364e-05,2]
[424938054,1781303409000,152.0,9.371e-05,7]
[424938072,1781303432000,-150.0,8.363e-05,2]
[424938073,1781303434000,-293.48156329,8.364e-05,2]
[424938075,1781303434000,-137361.77248444,8.364e-05,2]
[424938076,1781303434000,-184820.8812499,8.364e-05,2]
[424938074,1781303434000,-259274.8363102,8.364e-05,2]
[424938079,1781303434000,-741.54979015,8.364e-05,2]
[424938081,1781303434000,-1200.0,8.364e-05,2]
[424938080,1781303434000,-275.65157898,8.364e-05,2]
[424938077,1781303434000,-230646.30966274,8.364e-05,2]
[424938078,1781303434000,-1254.41808677,8.364e-05,2]
[424938092,1781303438000,-6899.53135905,8.364e-05,2]
[424938091,1781303438000,-500.0,8.364e-05,2]
[424938086,1781303438000,-2438.15312271,8.364e-05,2]
[424938085,1781303438000,-1131.52677623,8.364e-05,2]
[424938119,1781303440000,-286.07,9.171e-05,2]
[424938134,1781303440000,-200.0,0.00010038,2]
[424938122,1781303440000,-1303.75,9.219e-05,2]
[424938123,1781303440000,-898.93,9.268e-05,2]
[424938124,1781303440000,-551.41,9.274e-05,2]
[424938125,1781303440000,-1262.25,9.399e-05,2]
[424938126,1781303440000,-28878.8483566,9.561e-05,2]
[424938128,1781303440000,-500.0,9.89e-05,2]
[424938129,1781303440000,-500.0,9.945e-05,2]
[424938127,1781303440000,-841.01,9.879e-05,2]
[424938132,1781303440000,-166.68,0.00010027,2]
[424938131,1781303440000,-284.14954453,0.0001,2]
[424938133,1781303440000,-200.0,0.00010038,2]
[424938120,1781303440000,-255.0,9.199e-05,2]
[424938130,1781303440000,-1209.992716,0.0001,2]
[424938116,1781303440000,-500.0,9.078e-05,2]
[424938104,1781303440000,-150.0,8.53e-05,2]
[424938117,1781303440000,-5950.42,9.108e-05,2]
[424938100,1781303440000,-117264.46985323,8.364e-05,2]
[424938101,1781303440000,-10943.03721896,8.411e-05,2]
[424938102,1781303440000,-2905.72,8.425e-05,2]
[424938103,1781303440000,-150.0,8.446e-05,2]
[424938105,1781303440000,-150.0,8.614e-05,2]
[424938107,1781303440000,-948062.2877044,8.626e-05,2]
[424938106,1781303440000,-7585.1267061,8.626e-05,2]
[424938108,1781303440000,-202.0,8.697e-05,2]
[424938110,1781303440000,-8130.01,8.8e-05,2]
[424938109,1781303440000,-369.03,8.697e-05,2]
[424938111,1781303440000,-2135.93,8.8e-05,2]
[424938113,1781303440000,-150.99,8.8e-05,2]
[424938112,1781303440000,-299.99,8.8e-05,2]
[424938115,1781303440000,-3051.34,8.8e-05,2]
[424938114,1781303440000,-9999.99,8.8e-05,2]
[424938118,1781303440000,-250.0,9.125e-05,2]
[424938135,1781303440000,-433.0,0.00010119,2]
[424938121,1781303440000,-259.45,9.207e-05,2]
[424938136,1781303440000,-200.0,0.00010138,2]
[424938160,1781303440000,-531.0,0.00010652,5]
[424938165,1781303440000,-150.0,0.00010959,2]
[424938158,1781303440000,-179.0070577,0.0001063,2]
[424938157,1781303440000,-500.0,0.0001063,2]
[424938161,1781303440000,-1955.92646404,0.000109,2]
[424938159,1781303440000,-500.0,0.0001063,2]
[424938163,1781303440000,-1955.92646399,0.000109,2]
[424938164,1781303440000,-550.18,0.00010932,2]
[424938162,1781303440000,-1955.92646399,0.000109,2]
[424938167,1781303440000,-166.66,0.00010959,2]
[424938168,1781303440000,-217.71,0.00010989,2]
[424938169,1781303440000,-338.37495326,0.00011,2]
[424938171,1781303440000,-300.0,0.00011098,2]
[424938170,1781303440000,-166.66,0.00011068,2]
[424938137,1781303440000,-200.0,0.00010138,2]
[424938155,1781303440000,-500.0,0.0001063,2]
[424938156,1781303440000,-500.0,0.0001063,2]
[424938166,1781303440000,-150.0,0.00010959,2]
[424938152,1781303440000,-500.0,0.0001063,2]
[424938138,1781303440000,-200.0,0.0001024,2]
[424938153,1781303440000,-150.0,0.0001063,2]
[424938139,1781303440000,-200.0,0.0001024,2]
[424938140,1781303440000,-52864.82920818,0.000103,2]
[424938141,1781303440000,-1956.0,0.000103,5]
[424938143,1781303440000,-200.0,0.00010342,2]
[424938144,1781303440000,-551.41,0.00010433,2]
[424938142,1781303440000,-200.0,0.00010342,2]
[424938154,1781303440000,-500.0,0.0001063,2]
[424938146,1781303440000,-200.0,0.00010446,2]
[424938147,1781303440000,-200.0,0.00010446,2]
[424938149,1781303440000,-200.0,0.00010584,2]
[424938148,1781303440000,-1262.25,0.00010574,2]
[424938151,1781303440000,-150.0,0.0001063,2]
[424938145,1781303440000,-1244.8,0.00010446,2]
[424938150,1781303440000,-161.58083644,0.00010598,2]
[424938225,1781303441000,-1955.92646399,0.00012076,2]
[424938233,1781303441000,-220.0,0.00012166,2]
[424938230,1781303441000,-550.18,0.00012147,2]
[424938231,1781303441000,-278.0,0.00012166,2]
[424938227,1781303441000,-618.0,0.000121,2]
[424938229,1781303441000,-1000.0,0.000121,2]
[424938224,1781303441000,-8686.0196,0.00012066,2]
[424938235,1781303441000,-248.119,0.00012166,2]
[424938221,1781303441000,-152.0,0.00012025,7]
[424938232,1781303441000,-232.981,0.00012166,2]
[424938234,1781303441000,-250.0,0.00012166,2]
[424938240,1781303441000,-195.348,0.00012166,2]
[424938236,1781303441000,-250.0,0.00012166,2]
[424938238,1781303441000,-167.685,0.00012166,2]
[424938239,1781303441000,-250.0,0.00012166,2]
[424938241,1781303441000,-167.555,0.00012166,2]
[424938242,1781303441000,-247.772,0.00012166,2]
[424938244,1781303441000,-153.0,0.00012166,2]
[424938243,1781303441000,-189.0,0.00012166,2]
[424938246,1781303441000,-181.76121928,0.00012329,2]
[424938245,1781303441000,-181.01,0.00012329,2]
[424938249,1781303441000,-1360.31115354,0.00012481,2]
[424938217,1781303441000,-7179.54602703,0.00011978,2]
[424938237,1781303441000,-242.103,0.00012166,2]
[424938219,1781303441000,-2470.3105406,0.00012,2]
[424938179,1781303441000,-334.0,0.0001111,5]
[424938202,1781303441000,-1275.0,0.0001167,2]
[424938172,1781303441000,-300.0,0.00011098,2]
[424938173,1781303441000,-300.0,0.00011098,2]
[424938174,1781303441000,-7179.54602707,0.00011099,2]
[424938175,1781303441000,-7179.54602703,0.00011099,2]
[424938176,1781303441000,-7179.54602703,0.00011099,2]
[424938177,1781303441000,-7179.54602703,0.00011099,2]
[424938178,1781303441000,-423.0,0.0001111,5]
[424938191,1781303441000,-166.66,0.00011397,2]
[424938180,1781303441000,-156.0,0.00011131,2]
[424938248,1781303441000,-200.0,0.00012481,2]
[424938183,1781303441000,-166.66,0.00011178,2]
[424938181,1781303441000,-1955.92646399,0.00011135,2]
[424938185,1781303441000,-7179.54602703,0.00011247,2]
[424938186,1781303441000,-166.66,0.00011288,2]
[424938188,1781303441000,-1357.31,0.000113,2]
[424938192,1781303441000,-166.66,0.00011507,2]
[424938194,1781303441000,-50945.7116203,0.00011561,2]
[424938196,1781303441000,-76211.73772108,0.00011561,2]
[424938198,1781303441000,-103117.1823,0.00011561,2]
[424938209,1781303441000,-221.09,0.00011701,2]
[424938213,1781303441000,-300.0,0.00011719,2]
[424938211,1781303441000,-300.0,0.00011719,2]
[424938215,1781303441000,-1262.25,0.00011749,2]
[424938200,1781303441000,-551.41,0.00011592,2]
[424938207,1781303441000,-1227.0,0.0001167,2]
[424938204,1781303441000,-382.0,0.0001167,2]
[424938250,1781303441000,-200.0,0.00012481,2]
[424938258,1781303441000,-200.0,0.00012732,2]
[424938251,1781303441000,-693.46,0.00012516,2]
[424938287,1781303441000,-378.4,0.00013125,2]
[424938280,1781303441000,-15291.34377432,0.00013,5]
[424938283,1781303441000,-1955.92646399,0.00013017,2]
[424938282,1781303441000,-693.46,0.00013014,2]
[424938286,1781303441000,-378.4,0.00013091,2]
[424938247,1781303441000,-151.0,0.00012481,2]
[424938288,1781303441000,-378.4,0.00013156,2]
[424938289,1781303441000,-378.4,0.00013186,2]
[424938290,1781303441000,-378.4,0.00013215,2]
[424938291,1781303441000,-693.46,0.0001322,2]
[424938292,1781303441000,-378.4,0.00013243,2]
[424938285,1781303441000,-378.4,0.00013056,2]
[424938294,1781303441000,-378.4,0.00013296,2]
[424938298,1781303441000,-500.0,0.00013356,2]
[424938297,1781303441000,-378.4,0.00013346,2]
[424938296,1781303441000,-378.4,0.00013322,2]
[424938300,1781303441000,-500.0,0.00013356,2]
[424938295,1781303441000,-358.95753917,0.0001331,2]
[424938299,1781303441000,-505.48364925,0.00013356,2]
[424938302,1781303441000,-378.4,0.0001337,2]
[424938301,1781303441000,-550.18,0.00013362,2]
[424938304,1781303441000,-693.46,0.00013378,2]
[424938303,1781303441000,-226.777437,0.00013377,2]
[424938305,1781303441000,-378.4,0.00013393,2]
[424938293,1781303441000,-378.4,0.0001327,2]
[424938281,1781303441000,-301.52,0.00013,2]
[424938284,1781303441000,-378.4,0.00013019,2]
[424938279,1781303441000,-200.0,0.00012988,2]
[424938252,1781303441000,-164.33,0.00012587,2]
[424938254,1781303441000,-200.0,0.00012606,2]
[424938253,1781303441000,-200.0,0.00012606,2]
[424938255,1781303441000,-378.4,0.00012681,2]
[424938278,1781303441000,-200.0,0.00012988,2]
[424938257,1781303441000,-200.0,0.00012732,2]
[424938259,1781303441000,-160.0,0.0001274,2]
[424938261,1781303441000,-172.606908,0.0001274,2]
[424938260,1781303441000,-166.303454,0.0001274,2]
[424938263,1781303441000,-198.880141,0.0001274,2]
[424938266,1781303441000,-343.690375,0.00012781,7]
[424938262,1781303441000,-192.863689,0.0001274,2]
[424938256,1781303441000,-7179.54602703,0.00012708,2]
[424938264,1781303441000,-551.41,0.00012752,2]
[424938265,1781303441000,-378.4,0.00012766,2]
[424938270,1781303441000,-200.0,0.00012859,2]
[424938277,1781303441000,-310.862214,0.00012982,7]
[424938276,1781303441000,-378.4,0.00012978,2]
[424938269,1781303441000,-200.0,0.00012859,2]
[424938273,1781303441000,-1262.25,0.00012924,2]
[424938271,1781303441000,-256.368932,0.00012867,2]
[424938274,1781303441000,-378.4,0.00012935,2]
[424938275,1781303441000,-898.93,0.00012975,2]
[424938268,1781303441000,-378.4,0.00012831,2]
[424938267,1781303441000,-382.494939,0.00012804,2]
[424938272,1781303441000,-378.4,0.00012886,2]
[424938320,1781303442000,-378.4,0.00013501,2]
[424938317,1781303442000,-150.0,0.00013488,2]
[424938316,1781303442000,-150.0,0.00013488,2]
[424938318,1781303442000,-150.0,0.00013488,2]
[424938319,1781303442000,-150.0,0.00013488,2]
[424938315,1781303442000,-150.0,0.00013488,2]
[424938314,1781303442000,-150.0,0.00013488,2]
[424938307,1781303442000,-378.4,0.00013416,2]
[424938310,1781303442000,-173.861336,0.00013444,2]
[424938311,1781303442000,-378.4,0.0001346,2]
[424938308,1781303442000,-378.4,0.00013438,2]
[424938309,1781303442000,-7179.54602703,0.00013439,2]
[424938306,1781303442000,-181.76121928,0.00013397,2]
[424938313,1781303442000,-150.0,0.00013488,2]
[424938312,1781303442000,-378.4,0.00013481,2]
[424938322,1781303442000,-378.4,0.00013522,2]
[424938339,1781303442000,-500.0,0.00013698,2]
[424938324,1781303442000,-378.4,0.00013561,2]
[424938337,1781303442000,-500.0,0.00013698,2]
[424938338,1781303442000,-500.0,0.00013698,2]
[424938335,1781303442000,-300.0,0.00013697,2]
[424938332,1781303442000,-378.4,0.00013654,2]
[424938333,1781303442000,-378.4,0.00013672,2]
[424938329,1781303442000,-164.33,0.00013626,2]
[424938331,1781303442000,-378.4,0.00013636,2]
[424938321,1781303442000,-693.46,0.00013512,2]
[424938330,1781303442000,-693.46,0.00013629,2]
[424938327,1781303442000,-378.4,0.00013618,2]
[424938328,1781303442000,-1244.8,0.00013626,2]
[424938326,1781303442000,-378.4,0.00013599,2]
[424938325,1781303442000,-378.4,0.0001358,2]
[424938323,1781303442000,-378.4,0.00013542,2]
[424938334,1781303442000,-378.4,0.00013689,2]
[424938363,1781303443000,-200.0,0.00013699,2]
[424938362,1781303443000,-457.52,0.00013698,2]
[424938364,1781303443000,-500.0,0.00013699,2]
[424938365,1781303443000,-500.0,0.00013699,2]
[424938370,1781303443000,-500.0,0.00013699,2]
[424938367,1781303443000,-500.0,0.00013699,2]
[424938372,1781303443000,-500.0,0.00013699,2]
[424938366,1781303443000,-500.0,0.00013699,2]
[424938369,1781303443000,-500.0,0.00013699,2]
[424938371,1781303443000,-500.0,0.00013699,2]
[424938373,1781303443000,-500.0,0.00013699,2]
[424938379,1781303443000,-500.0,0.00013699,2]
[424938361,1781303443000,-500.0,0.00013698,2]
[424938368,1781303443000,-500.0,0.00013699,2]
[424938360,1781303443000,-500.0,0.00013698,2]
[424938351,1781303443000,-209.2,0.00013698,2]
[424938359,1781303443000,-500.0,0.00013698,2]
[424938353,1781303443000,-182.4905201,0.00013698,2]
[424938355,1781303443000,-500.0,0.00013698,2]
[424938357,1781303443000,-500.0,0.00013698,2]
[424938356,1781303443000,-500.0,0.00013698,2]
[424938350,1781303443000,-500.0,0.00013698,2]
[424938375,1781303443000,-500.0,0.00013699,2]
[424938349,1781303443000,-500.0,0.00013698,2]
[424938347,1781303443000,-500.0,0.00013698,2]
[424938344,1781303443000,-500.0,0.00013698,2]
[424938342,1781303443000,-500.0,0.00013698,2]
[424938346,1781303443000,-500.0,0.00013698,2]
[424938340,1781303443000,-500.0,0.00013698,2]
[424938348,1781303443000,-269.57,0.00013698,2]
[424938358,1781303443000,-500.0,0.00013698,2]
[424938378,1781303443000,-500.0,0.00013699,2]
[424938345,1781303443000,-500.0,0.00013698,2]
[424938377,1781303443000,-429.32237924,0.00013699,2]
[424938410,1781303443000,-169.31117465,0.00014042,2]
[424938412,1781303443000,-253.21635992,0.00014069,2]
[424938413,1781303443000,-1683.80401505,0.00014075,2]
[424938406,1781303443000,-250.0,0.00014,2]
[424938407,1781303443000,-331.519573,0.00014,2]
[424938414,1781303443000,-162.62255648,0.00014099,2]
[424938408,1781303443000,-10000.0,0.00014016,2]
[424938401,1781303443000,-10000.0,0.00013818,2]
[424938403,1781303443000,-17160.64,0.0001388,2]
[424938402,1781303443000,-693.46,0.00013833,2]
[424938400,1781303443000,-1500.0,0.00013799,2]
[424938399,1781303443000,-378.4,0.00013789,2]
[424938398,1781303443000,-301.75,0.00013782,2]
[424938397,1781303443000,-378.4,0.00013773,2]
[424938395,1781303443000,-378.4,0.00013757,2]
[424938405,1781303443000,-1955.92646399,0.00013959,2]
[424938393,1781303443000,-378.4,0.0001374,2]
[424938404,1781303443000,-551.41,0.00013911,2]
[424938376,1781303443000,-500.0,0.00013699,2]
[424938381,1781303443000,-500.0,0.00013699,2]
[424938380,1781303443000,-500.0,0.00013699,2]
[424938382,1781303443000,-500.0,0.00013699,2]
[424938383,1781303443000,-500.0,0.00013699,2]
[424938387,1781303443000,-500.0,0.00013699,2]
[424938374,1781303443000,-500.0,0.00013699,2]
[424938392,1781303443000,-693.46,0.00013736,2]
[424938386,1781303443000,-500.0,0.00013699,2]
[424938384,1781303443000,-500.0,0.00013699,2]
[424938389,1781303443000,-500.0,0.00013699,2]
[424938391,1781303443000,-378.4,0.00013724,2]
[424938390,1781303443000,-378.4,0.00013707,2]
[424938385,1781303443000,-500.0,0.00013699,2]
[424938388,1781303443000,-500.0,0.00013699,2]
[424938456,1781303445000,-1000.0,0.00014099,2]
[424938458,1781303445000,-746.75255648,0.00014169,2]
[424938457,1781303445000,-99.62744352,0.00014099,2]
[424938461,1781303445000,-311.41844907,0.00012288,2]
[424938459,1781303445000,-1410.41692284,0.00012288,2]
[424938462,1781303445000,152.0,9.358e-05,7]
[424938460,1781303445000,-379.9903187,0.00012288,2]
[424938469,1781303446000,-151.0,0.00014169,2]
[424938470,1781303446000,-6432.79347055,0.00014169,2]
[424938468,1781303446000,-2778.02,0.00013581,2]
[424938466,1781303446000,-1358.0,0.00011006,2]
[424938467,1781303446000,-676.19430939,0.00012288,2]
[424938464,1781303446000,152.0,9.358e-05,7]
[424938480,1781303447000,-23944.60442772,0.000144,2]
[424938481,1781303447000,-275.89021666,0.000144,2]
[424938479,1781303447000,-300.0,0.00014399,2]
[424938478,1781303447000,-1555.5,0.00014347,2]
[424938477,1781303447000,-200.0,0.00014322,2]
[424938476,1781303447000,-10000.0,0.00014222,2]
[424938482,1781303580000,-26535.3820506,8.264e-05,2]
[424938484,1781303602000,-26535.3820506,8.264e-05,2]
[424938485,1781303603000,152.0,9.368e-05,7]
[424938486,1781303625000,-176.44445933,8.263e-05,2]
[424938487,1781303677000,-500.0,8.263e-05,2]
[424938488,1781303731000,-500.0,8.262e-05,2]
[424938493,1781303784000,-500.0,8.262e-05,2]
[424938494,1781303803000,152.0,9.409e-05,7]
[424938495,1781303837000,-500.0,8.261e-05,2]
[424938496,1781303870000,200.0,8.264e-05,7]
[424938503,1781303891000,-961.611681,8.261e-05,2]
[424938504,1781303944000,-500.0,8.26e-05,2]
[424938505,1781303998000,-500.0,8.26e-05,2]
[424938525,1781304162000,-182.31,7.86e-05,2]
[424938527,1781304216000,-500.0,8.163e-05,2]
[424938531,1781304269000,-1358.67,8.099e-05,2]
[424938532,1781304323000,-776.912981,8.099e-05,2]
[424938535,1781304354000,-333.68202838,8.162e-05,2]
[424938536,1781304376000,-165.65917562,8.162e-05,2]
[424938539,1781304429000,-500.0,8.163e-05,2]
[424938541,1781304483000,-500.0,8.163e-05,2]
[424938542,1781304537000,-500.0,8.163e-05,2]
[424938546,1781304555000,-242.83294783,8.064e-05,2]
[424938545,1781304555000,-153.01588694,8.064e-05,2]
[424938544,1781304555000,-152.08943177,8.064e-05,2]
[424938547,1781304590000,-1559.75773346,8.064e-05,2]
[424938548,1781304590000,-346.94811692,8.113e-05,2]
[424938550,1781304590000,-63.62706681,8.163e-05,2]
[424938549,1781304590000,-681.93188308,8.113e-05,2]
[424938556,1781304602000,-2702.86610758,8.164e-05,2]
[424938554,1781304602000,-2531.78953658,8.164e-05,2]
[424938555,1781304602000,-3370.0650925,8.164e-05,2]
[424938552,1781304602000,-388.27555592,8.163e-05,2]
[424938553,1781304602000,-250.0,8.163e-05,2]
[424938551,1781304602000,-200.0,8.067e-05,2]
[424939141,1781304643000,-1529.7077936,8.164e-05,2]
[424939161,1781304644000,-9812.2,8.571e-05,2]
[424939162,1781304644000,-3051.34,8.571e-05,2]
[424939160,1781304644000,-150.0,8.489e-05,2]
[424939158,1781304644000,-2135.93,8.408e-05,2]
[424939159,1781304644000,-150.0,8.408e-05,2]
[424939157,1781304644000,-14212.27,8.398e-05,2]
[424939154,1781304644000,-150.0,8.326e-05,2]
[424939151,1781304644000,-171.91306595,8.223e-05,2]
[424939155,1781304644000,-299.99,8.396e-05,2]
[424939156,1781304644000,-160.0,8.398e-05,2]
[424939152,1781304644000,-150.0,8.244e-05,2]
[424939149,1781304644000,-16457.28406974,8.164e-05,2]
[424939150,1781304644000,-171.91306596,8.223e-05,2]
[424939163,1781304644000,-8089.39779781,8.571e-05,2]
[424939153,1781304644000,-161.58083644,8.258e-05,2]
[424939164,1781304644000,-1910.59220219,8.571e-05,2]
[424939180,1781304644000,-265.31865506,8.979e-05,2]
[424939166,1781304644000,-150.0,8.571e-05,2]
[424939165,1781304644000,-9999.99,8.571e-05,2]
[424939182,1781304644000,-500.0,8.979e-05,2]
[424939181,1781304644000,-300.0,8.979e-05,2]
[424939176,1781304644000,-300.0,8.87e-05,2]
[424939178,1781304644000,-300.0,8.87e-05,2]
[424939177,1781304644000,-500.0,8.87e-05,2]
[424939174,1781304644000,-193.33491251,8.87e-05,2]
[424939179,1781304644000,-5950.42,8.922e-05,2]
[424939172,1781304644000,-165.07,8.804e-05,2]
[424939173,1781304644000,-259.45,8.837e-05,2]
[424939170,1781304644000,-32706.05394453,8.69e-05,2]
[424939171,1781304644000,-47627.51004019,8.764e-05,2]
[424939169,1781304644000,-12393.27694723,8.69e-05,2]
[424939168,1781304644000,-2905.72,8.669e-05,2]
[424939175,1781304644000,-3815.50779079,8.87e-05,2]
[424939167,1781304644000,-254.0,8.653e-05,2]
[424939197,1781304645000,-163.66,0.0001,2]
[424939200,1781304645000,-500.0,0.00010027,2]
[424939201,1781304645000,-1028.88,0.00010141,2]
[424939199,1781304645000,-887.53,0.00010027,2]
[424939204,1781304645000,-165.07,0.00010257,2]
[424939202,1781304645000,-500.0,0.00010141,2]
[424939206,1781304645000,-5530.0,0.000103,5]
[424939205,1781304645000,-887.53,0.00010278,2]
[424939208,1781304645000,-1303.75,0.00010367,2]
[424939198,1781304645000,-268.89151363,0.0001,2]
[424939203,1781304645000,-5530.0,0.000102,3]
[424939196,1781304645000,-7195.5382938,0.0001,2]
[424939188,1781304645000,-1028.88,9.127e-05,2]
[424939193,1781304645000,-1054.40189228,9.955e-05,2]
[424939194,1781304645000,-26403.4617062,0.0001,2]
[424939191,1781304645000,-1768.86,9.412e-05,2]
[424939190,1781304645000,-1171.66,9.404e-05,2]
[424939189,1781304645000,-259.0,9.253e-05,2]
[424939209,1781304645000,-898.93,0.00010455,2]
[424939187,1781304645000,-633.2636339,8.98e-05,2]
[424939186,1781304645000,-250.0,8.98e-05,2]
[424939185,1781304645000,-250.0,8.979e-05,2]
[424939184,1781304645000,-500.0,8.979e-05,2]
[424939183,1781304645000,-500.0,8.979e-05,2]
[424939195,1781304645000,-160.0,8.4e-05,2]
[424939207,1781304645000,-500.0,0.00010301,2]
[424939192,1781304645000,-286.07,9.697e-05,2]
[424939214,1781304645000,-150.0,0.0001063,2]
[424939213,1781304645000,-150.0,0.0001063,2]
[424939233,1781304645000,-500.0,0.00010756,2]
[424939236,1781304645000,-544.56840726,0.00010756,2]
[424939235,1781304645000,-500.0,0.00010756,2]
[424939234,1781304645000,-500.0,0.00010756,2]
[424939232,1781304645000,-500.0,0.00010756,2]
[424939231,1781304645000,-500.0,0.00010756,2]
[424939230,1781304645000,-500.0,0.00010756,2]
[424939228,1781304645000,-500.0,0.00010756,2]
[424939226,1781304645000,-504.63623623,0.00010756,2]
[424939227,1781304645000,-500.0,0.00010756,2]
[424939221,1781304645000,-500.0,0.00010756,2]
[424939229,1781304645000,-500.0,0.00010756,2]
[424939223,1781304645000,-500.0,0.00010756,2]
[424939225,1781304645000,-500.0,0.00010756,2]
[424939211,1781304645000,-57697.35593058,0.0001054,2]
[424939210,1781304645000,-887.53,0.00010529,2]
[424939217,1781304645000,-500.0,0.00010756,2]
[424939216,1781304645000,-500.0,0.00010756,2]
[424939215,1781304645000,-500.0,0.00010756,2]
[424939212,1781304645000,-1768.86,0.00010588,2]
[424939220,1781304645000,-500.0,0.00010756,2]
[424939218,1781304645000,-500.0,0.00010756,2]
[424939222,1781304645000,-500.0,0.00010756,2]
[424939224,1781304645000,-500.0,0.00010756,2]
[424939219,1781304645000,-500.0,0.00010756,2]
[424939271,1781304646000,-6461.59142433,0.00011517,2]
[424939274,1781304646000,-1275.0,0.0001161,2]
[424939277,1781304646000,-150.0,0.0001161,2]
[424939273,1781304646000,-3556.0,0.0001161,2]
[424939266,1781304646000,-250.0,0.00011424,2]
[424939270,1781304646000,-1530.34380612,0.00011517,2]
[424939267,1781304646000,-2000.0,0.00011424,2]
[424939268,1781304646000,-746750.7442039,0.00011425,2]
[424939269,1781304646000,-166.66,0.00011507,2]
[424939276,1781304646000,-1227.0,0.0001161,2]
[424939272,1781304646000,-1358.0,0.0001161,2]
[424939275,1781304646000,-382.0,0.0001161,2]
[424939291,1781304646000,-427.27,0.00012272,2]
[424939278,1781304646000,-424.437,0.0001161,2]
[424939280,1781304646000,-221.09,0.00011701,2]
[424939281,1781304646000,-1768.86,0.00011765,2]
[424939282,1781304646000,-1955.92646399,0.00012013,2]
[424939283,1781304646000,-284.14954453,0.0001203,2]
[424939284,1781304646000,-151.0,0.00012037,2]
[424939288,1781304646000,-1028.88,0.00012169,2]
[424939287,1781304646000,-152.79432134,0.00012069,2]
[424939289,1781304646000,-1530.34380612,0.00012188,2]
[424939285,1781304646000,-86311.79381994,0.0001204,2]
[424939286,1781304646000,-116782.9245,0.0001204,2]
[424939265,1781304646000,-300.0,0.00011424,2]
[424939279,1781304646000,-6076.0,0.0001161,2]
[424939264,1781304646000,-151.0,0.00011422,2]
[424939250,1781304646000,-6461.59142433,0.00011099,2]
[424939260,1781304646000,-166.66,0.00011288,2]
[424939290,1781304646000,-6461.59142433,0.00012188,2]
[424939237,1781304646000,-887.53,0.00010779,2]
[424939238,1781304646000,-1955.92646404,0.000109,2]
[424939242,1781304646000,-150.0,0.00010959,2]
[424939239,1781304646000,-1955.92646399,0.000109,2]
[424939240,1781304646000,-1955.92646399,0.000109,2]
[424939241,1781304646000,-166.66,0.00010959,2]
[424939243,1781304646000,-150.0,0.00010959,2]
[424939244,1781304646000,-217.71,0.00010989,2]
[424939245,1781304646000,-887.53,0.0001103,2]
[424939249,1781304646000,-6461.59142433,0.00011099,2]
[424939248,1781304646000,-6461.59142434,0.00011099,2]
[424939247,1781304646000,-166.66,0.00011068,2]
[424939246,1781304646000,-1955.92646399,0.00011051,2]
[424939251,1781304646000,-6461.59142433,0.00011099,2]
[424939253,1781304646000,-1530.34380614,0.00011099,2]
[424939254,1781304646000,-1530.34380612,0.00011099,2]
[424939255,1781304646000,-1530.34380612,0.00011099,2]
[424939252,1781304646000,-6461.59142433,0.00011099,2]
[424939256,1781304646000,-1530.34380612,0.00011099,2]
[424939257,1781304646000,-1530.34380612,0.00011099,2]
[424939259,1781304646000,-166.66,0.00011178,2]
[424939258,1781304646000,-1028.88,0.00011155,2]
[424939261,1781304646000,-166.66,0.00011397,2]
[424939263,1781304646000,-5958.8530475,0.00011402,2]
[424939262,1781304646000,-1357.31,0.000114,2]